bitfinex-derivatives/quotes_ETHF0:USTF0_20250804
["timestamp","ask_amount","ask_price","bid_price","bid_amount"]
[1754269641639,20.93256,3548.5,3548.4,3.7806]
[1754269641937,20.369,3548.5,3548.4,3.7806]
[1754269642240,21.2805,3548.5,3548.4,3.7806]
[1754269642541,0.24401313,3549.0,3548.3,3.2078]
[1754269642542,1.40847,3549.6,3548.3,3.2078]
[1754269642842,2.2633,3549.4,3549.3,2.8386]
[1754269643042,2.41405603,3549.4,3549.3,2.8386]
[1754269643537,0.15075603,3549.4,3549.3,3.7806]
[1754269643744,20.51875603,3549.4,3549.3,3.7806]
[1754269645739,0.15075603,3549.4,3549.3,3.7806]
[1754269646939,20.365,3549.5,3549.3,2.8386]
[1754269647141,0.9115,3549.4,3549.3,3.7806]
[1754269647639,0.9115,3549.4,3549.3,4.34403]
[1754269647839,2.3861,3549.3,3549.2,3.2078]
[1754269648046,3.7379,3549.3,3549.2,3.2078]
[1754269648242,4.30139,3548.9,3548.8,3.2078]
[1754269649441,20.361,3549.0,3548.9,3.7806]
[1754269649844,24.0989,3549.0,3548.9,1.4954]
[1754269650043,3.7379,3548.9,3548.8,4.7032]
[1754269650546,3.7379,3548.9,3548.8,6.0464]
[1754269650946,3.7379,3548.9,3548.8,3.2078]
[1754269651148,2.2633,3548.9,3548.8,6.0464]
[1754269651444,4.30139,3548.9,3548.8,3.2078]
[1754269651841,4.30139,3548.9,3548.4,2.8386]
[1754269651842,3.7379,3548.5,3548.4,3.2078]
[1754269652142,3.7379,3548.2,3547.8,5.26686]
[1754269652342,3.7379,3547.9,3547.8,4.7032]
[1754269652938,3.7379,3547.9,3547.8,5.26686]
[1754269653138,3.7379,3547.9,3547.8,6.61006]
[1754269653344,2.2633,3547.9,3547.8,7.55206]
[1754269653748,21.2695,3548.1,3548.0,3.40223]
[1754269653942,22.6213,3548.1,3548.0,3.40223]
[1754269654143,24.0959,3548.1,3548.0,3.40223]
[1754269654345,24.0959,3548.1,3547.8,3.2078]
[1754269654648,0.9115,3547.9,3547.8,3.2078]
[1754269654837,0.9115,3547.9,3547.8,4.1498]
[1754269655241,0.9115,3547.9,3547.8,6.9884]
[1754269655446,2.2633,3547.9,3547.8,6.0464]
[1754269655642,3.7379,3547.9,3547.8,3.2078]
[1754269657445,0.9115,3548.1,3547.9,0.56365]
[1754269657646,1.4746,3548.5,3548.1,0.56362]
[1754269657952,0.56355,3548.6,3548.5,2.8386]
[1754269657953,1.47504,3548.6,3548.5,2.8386]
[1754269658145,4.30144,3548.6,3548.5,2.8386]
[1754269658345,3.7379,3548.6,3548.5,2.8386]
[1754269658545,24.0939,3548.6,3548.5,1.4954]
[1754269658744,24.0939,3548.6,3548.1,4.551]
[1754269658945,2.8264,3548.5,3548.2,2.8386]
[1754269659146,0.9115,3548.4,3548.3,2.8386]
[1754269659346,0.9115,3548.4,3548.3,3.7806]
[1754269659546,21.2665,3548.4,3548.3,3.7806]
[1754269659952,21.2665,3548.4,3548.3,4.34419]
[1754269660154,21.2665,3548.4,3548.3,3.7806]
[1754269660856,0.9115,3548.4,3548.3,3.7806]
[1754269661256,20.354,3548.4,3548.3,3.7806]
[1754269661654,21.2655,3548.4,3548.3,3.7806]
[1754269661856,22.6173,3548.4,3548.3,3.7806]
[1754269662162,0.5636,3548.2,3548.1,4.7032]
[1754269662457,0.5636,3548.2,3548.1,3.2078]
[1754269662654,4.3015,3548.2,3548.1,3.2078]
[1754269663554,0.56367,3547.8,3547.3,3.2078]
[1754269663748,3.6292,3547.8,3547.7,3.2078]
[1754269664152,0.9024,3548.0,3547.8,0.8964]
[1754269664354,0.56365,3547.9,3547.8,0.8964]
[1754269664561,0.9024,3547.9,3547.8,0.8964]
[1754269664954,0.9024,3547.9,3547.8,3.7644]
[1754269665464,3.6292,3547.9,3547.8,2.868]
[1754269665668,3.6292,3547.9,3547.8,1.6141]
[1754269665859,2.95307,3547.8,3547.7,3.2078]
[1754269666065,4.19287,3547.8,3547.7,3.2078]
[1754269667369,21.2524,3547.8,3547.7,6.9722]
[1754269667857,0.9024,3548.0,3547.8,2.1503]
[1754269668057,0.56359,3548.3,3548.1,3.7644]
[1754269668264,0.56359,3548.3,3548.2,3.7644]
[1754269668469,1.46599,3548.3,3548.2,3.7644]
[1754269668662,4.19279,3548.3,3548.2,3.7644]
[1754269669067,4.19279,3548.3,3548.2,2.868]
[1754269669271,0.9024,3548.3,3548.2,2.868]
[1754269669474,2.1422,3548.3,3548.2,2.868]
[1754269669768,3.6292,3548.3,3548.2,2.868]
[1754269670171,0.5636,3548.2,3547.9,0.8964]
[1754269670368,4.19287,3547.8,3547.7,3.2078]
[1754269670573,3.6292,3547.8,3547.7,4.8219]
[1754269670873,4.19287,3547.8,3547.7,3.2078]
[1754269671570,4.19293,3547.4,3547.3,3.2078]
[1754269671771,24.53993,3547.4,3547.3,3.2078]
[1754269673072,23.05293,3547.4,3547.3,6.0758]
[1754269673463,1.487,3548.1,3547.5,2.5105]
[1754269673670,22.4882,3548.0,3547.9,2.868]
[1754269673974,22.4882,3548.0,3547.4,3.7644]
[1754269673975,1.46605,3547.9,3547.4,3.7644]
[1754269674167,0.9024,3547.8,3547.7,4.4617]
[1754269674765,0.9024,3547.8,3547.7,3.2078]
[1754269674766,20.345,3547.8,3547.7,3.2078]
[1754269674965,0.9024,3548.0,3547.7,3.77148]
[1754269675272,20.345,3547.9,3547.7,3.77148]
[1754269675477,20.345,3547.9,3547.8,3.7644]
[1754269676870,21.2474,3547.9,3547.8,3.7644]
[1754269677071,4.19287,3547.8,3547.7,3.2078]
[1754269678172,40.584,3548.4,3547.7,3.2078]
[1754269678373,1.46603,3548.1,3547.9,3.7644]
[1754269678571,20.342,3548.0,3547.9,2.1503]
[1754269678773,20.342,3548.0,3547.9,2.71395]
[1754269678973,20.342,3548.0,3547.9,4.32805]
[1754269679173,24.53483,3548.0,3547.7,3.2078]
[1754269679471,20.342,3547.9,3547.8,3.7644]
[1754269679677,0.9024,3548.2,3547.7,3.77147]
[1754269679678,1.466,3548.2,3547.9,0.56365]
[1754269679974,1.466,3548.2,3548.1,3.2078]
[1754269680175,23.0468,3548.2,3548.1,6.0758]
[1754269680577,24.5338,3548.2,3548.1,3.2078]
[1754269681069,24.5338,3548.2,3547.2,1.9701905]
[1754269681070,4.19293,3547.4,3547.3,3.2078]
[1754269681271,24.53293,3547.4,3547.3,3.2078]
[1754269681775,4.19299,3547.0,3546.9,4.22275651]
[1754269681975,24.53199,3547.0,3546.9,4.22275651]
[1754269682476,24.53199,3547.0,3546.9,5.83685651]
[1754269682664,24.53199,3547.0,3546.9,7.09075651]
[1754269683177,21.2424,3547.0,3546.9,7.09075651]
[1754269683365,23.9692,3547.0,3546.9,7.09075651]
[1754269683565,23.9692,3547.0,3546.9,5.83685651]
[1754269683772,23.9692,3547.0,3546.9,4.22275651]
[1754269684172,23.9692,3547.0,3546.4,0.56388]
[1754269684173,0.56385,3546.6,3546.4,1.9701905]
[1754269684475,1.80368,3546.4,3546.1,5.1779905]
[1754269684668,6.05080517,3546.8,3546.1,3.2078]
[1754269684669,4.19312,3546.2,3546.1,3.2078]
[1754269684868,24.53012,3546.2,3546.1,3.2078]
[1754269685070,0.56395,3546.0,3545.9,1.9701905]
[1754269685268,4.19315,3546.0,3545.9,1.9701905]
[1754269685565,0.56398,3545.8,3545.7,5.1779905]
[1754269685769,23.0628,3545.8,3545.7,4.1042]
[1754269685967,23.0628,3545.8,3545.7,3.2078]
[1754269685968,23.9652,3545.8,3545.7,3.2078]
[1754269687779,3.6292,3545.7,3545.3,3.2078]
[1754269687971,20.337,3545.6,3545.3,3.2078]
[1754269688172,4.19324,3545.4,3545.3,3.2078]
[1754269688877,3.6292,3545.4,3545.3,3.2078]
[1754269689180,2.3894,3545.4,3544.8,0.8964]
[1754269689474,3.6292,3545.2,3544.9,0.8964]
[1754269689676,3.6292,3545.1,3544.9,0.8964]
[1754269689876,23.9672,3545.0,3544.9,0.8964]
[1754269690770,1.2398,3544.7,3544.6,2.868]
[1754269690976,23.9662,3544.7,3544.6,0.8964]
[1754269691183,2.95357,3544.6,3544.5,3.2078]
[1754269691382,4.19337,3544.6,3544.5,3.2078]
[1754269691674,0.56421,3544.4,3544.2,0.8964]
[1754269691877,23.0628,3544.3,3544.2,2.5105]
[1754269692181,23.0628,3544.3,3544.2,3.7644]
[1754269692575,0.23303504,3546.2,3544.5,0.56418]
[1754269692576,3.2078,3545.1,3544.5,0.56418]
[1754269692880,2.7268,3544.9,3544.6,0.56416]
[1754269693176,2.1422,3545.4,3544.7,3.2078]
[1754269693373,40.601,3545.8,3545.1,3.2078]
[1754269693575,0.56402,3545.6,3545.2,1.6141]
[1754269693776,40.601,3545.8,3545.5,3.8175]
[1754269693975,3.4367,3546.3,3546.1,2.5573]
[1754269694184,3.4367,3546.3,3546.2,3.8175]
[1754269694381,23.92332303,3546.3,3546.2,0.9632]
[1754269694676,0.15062303,3546.3,3546.2,3.8175]
[1754269695186,0.56393,3546.1,3545.7,5.7651]
[1754269695476,20.335,3546.0,3545.9,3.8175]
[1754269695682,2.2781,3546.6,3545.9,3.8175]
[1754269695683,20.335,3546.1,3545.9,3.8175]
[1754269695882,4.7702,3546.7,3546.1,2.5573]
[1754269696080,1.3104,3546.9,3546.6,3.8175]
[1754269696280,20.335,3546.8,3546.7,3.8175]
[1754269696580,20.335,3546.8,3544.8,1.41034]
[1754269696581,3.8405,3546.5,3546.4,2.5573]
[1754269696776,24.1745,3546.5,3546.4,0.9632]
[1754269697775,0.56388,3546.4,3546.1,6.0621]
[1754269697982,4.40442,3546.2,3546.1,3.2078]
[1754269698178,4.40442,3546.2,3545.8,0.9632]
[1754269698179,3.8405,3545.9,3545.8,0.9632]
[1754269698577,23.2048,3545.9,3545.8,2.5573]
[1754269698777,0.56398,3545.8,3545.7,3.2078]
[1754269698972,24.1725,3545.9,3545.7,3.2078]
[1754269698973,14.73648,3545.9,3545.7,3.2078]
[1754269699186,0.56398,3545.8,3545.7,4.171]
[1754269699372,0.56398,3545.8,3545.7,3.2078]
[1754269699579,0.56398,3545.8,3545.2,0.9632]
[1754269699580,0.56406,3545.3,3545.2,0.9632]
[1754269699780,20.89407,3545.3,3544.9,1.2602]
[1754269699981,20.89407,3545.3,3545.2,0.9632]
[1754269700185,0.56412,3544.9,3544.8,7.0253]
[1754269700476,0.56412,3544.9,3544.8,3.2078]
[1754269700878,0.56412,3544.9,3544.3,1.5941]
[1754269700879,0.56419,3544.5,3544.3,1.5941]
[1754269701077,0.56419,3544.5,3544.4,6.0621]
[1754269701276,0.56419,3544.5,3543.9,1.01581569]
[1754269701277,0.56425,3544.2,3544.1,2.8543]
[1754269701476,0.56425,3544.2,3544.1,3.8175]
[1754269701680,1.44595,3544.2,3544.1,3.8175]
[1754269701982,2.06587,3544.0,3543.9,5.18681569]
[1754269702372,2.06587,3544.0,3543.9,6.78091569]
[1754269703082,1.44597,3544.0,3543.9,8.04111569]
[1754269703288,0.8817,3544.0,3543.9,8.04111569]
[1754269703476,1.8793,3544.0,3543.9,0.29640569]
[1754269703878,1.8793,3544.0,3543.9,1.25960569]
[1754269703879,1.5016,3544.0,3543.9,1.25960569]
[1754269704085,1.5016,3544.0,3543.9,2.85370569]
[1754269704086,21.8316,3544.0,3543.9,2.85370569]
[1754269704481,0.56424,3544.2,3544.0,3.8175]
[1754269704686,20.33,3544.1,3544.0,3.8175]
[1754269704887,20.33,3544.1,3543.9,0.29640569]
[1754269705082,20.33,3544.1,3544.0,3.8175]
[1754269705579,0.56408,3545.2,3544.4,1.5941]
[1754269705791,3.2078,3545.9,3544.8,3.2078]
[1754269706083,20.329,3545.8,3544.9,1.5941]
[1754269706284,0.56408,3545.2,3545.0,1.2602]
[1754269706479,3.00818,3545.2,3545.1,0.9632]
[1754269707088,20.329,3545.2,3544.9,2.5573]
[1754269707290,0.56409,3545.1,3545.0,2.8543]
[1754269707579,20.89308,3545.2,3545.0,2.5573]
[1754269707785,20.89308,3545.2,3545.1,3.8175]
[1754269707987,23.33718,3545.2,3545.1,0.9632]
[1754269710788,23.33718,3545.2,3544.8,3.2078]
[1754269710789,3.00822,3544.9,3544.8,0.9632]
[1754269710980,23.33322,3544.9,3544.8,0.9632]
[1754269711281,0.56419,3544.5,3544.4,7.0253]
[1754269711484,2.12659,3544.5,3544.4,5.4312]
[1754269711683,1.5624,3544.5,3544.4,5.4312]
[1754269711887,3.2078,3545.4,3544.5,0.9632]
[1754269712091,0.56414,3544.8,3544.7,0.9632]
[1754269712285,20.88814,3544.8,3544.7,3.8175]
[1754269712782,0.8817,3545.8,3544.5,1.5941]
[1754269712985,0.56406,3545.4,3545.1,3.2078]
[1754269713179,0.56406,3545.4,3545.3,3.8175]
[1754269713979,0.56402,3545.6,3545.4,3.8175]
[1754269714183,0.56402,3545.6,3545.5,3.8175]
[1754269714383,22.45141,3545.7,3545.5,3.8175]
[1754269714591,2.12641,3545.7,3545.6,2.2234]
[1754269714787,1.5624,3545.7,3545.6,3.8175]
[1754269714987,21.8854,3545.7,3545.6,3.8175]
[1754269715193,3.77177,3545.9,3545.8,2.2234]
[1754269715394,25.65717,3545.9,3545.8,2.2234]
[1754269715786,24.09477,3545.9,3545.8,3.8175]
[1754269716091,24.09477,3545.9,3545.8,2.2234]
[1754269716092,26.53887,3545.9,3545.8,2.2234]
[1754269716688,25.65717,3545.9,3545.8,2.2234]
[1754269716887,25.65717,3545.9,3545.8,3.8175]
[1754269717186,26.53887,3545.9,3545.8,3.8175]
[1754269717391,26.53887,3545.9,3545.8,2.2234]
[1754269717790,3.2078,3546.5,3545.8,3.8175]
[1754269717990,20.8829,3546.4,3546.1,2.2234]
[1754269718195,20.319,3546.4,3546.1,0.56393]
[1754269718588,20.319,3546.4,3546.3,3.8175]
[1754269719491,20.317,3546.4,3546.2,3.8175]
[1754269719892,20.317,3546.4,3546.3,3.8175]
[1754269720292,20.88088,3546.4,3546.3,3.8175]
[1754269720802,20.317,3546.4,3546.3,3.8175]
[1754269722895,20.317,3546.4,3546.1,3.2078]
[1754269722896,3.008,3546.3,3546.1,3.2078]
[1754269723101,2.4441,3546.2,3546.1,4.171]
[1754269724100,2.4822,3546.0,3545.2,6.0139]
[1754269724300,0.9798,3545.8,3545.2,6.0139]
[1754269724496,2.4111,3545.6,3545.3,1.5299]
[1754269724701,1.5024,3545.5,3545.2,3.2078]
[1754269724903,1.5024,3545.5,3545.4,2.8061]
[1754269725202,0.56401,3545.6,3545.5,2.8061]
[1754269726102,2.06641,3545.6,3545.5,3.7483]
[1754269726502,3.04621,3545.6,3545.5,3.7483]
[1754269726698,3.04626,3545.3,3545.2,5.4262]
[1754269727005,3.95496,3545.3,3545.2,4.15]
[1754269727198,3.95496,3545.3,3544.2,1.9701905]
[1754269727199,0.56412,3544.9,3544.8,0.9422]
[1754269727401,2.4822,3544.9,3544.8,3.7483]
[1754269727702,1.5024,3544.9,3544.8,3.7483]
[1754269727904,1.5024,3544.9,3544.6,3.2078]
[1754269727905,3.95504,3544.8,3544.6,5.4262]
[1754269728099,2.4822,3544.7,3544.6,3.2078]
[1754269728300,3.3909,3544.7,3544.6,3.2078]
[1754269728506,3.04642,3544.4,3544.3,2.2184]
[1754269729605,3.04642,3544.4,3544.3,3.7483]
[1754269730002,3.04642,3544.4,3544.3,2.2184]
[1754269730802,3.04642,3544.4,3543.9,0.29640569]
[1754269730803,1.8885,3544.3,3543.9,0.29640569]
[1754269731109,23.5118,3544.2,3543.9,0.29640569]
[1754269731302,3.3909,3544.0,3543.9,0.29640569]
[1754269731605,3.95517,3544.0,3543.9,0.29640569]
[1754269733809,9.28581119,3544.0,3543.9,0.29640569]
[1754269734010,10.26561119,3544.0,3543.9,0.29640569]
[1754269736610,2.06675,3543.5,3543.4,6.9561]
[1754269737107,1.5024,3543.5,3543.4,6.9561]
[1754269737307,22.36774,3543.6,3543.5,3.7483]
[1754269737809,23.34754,3543.6,3543.5,3.7483]
[1754269738000,22.36774,3543.6,3543.5,3.7483]
[1754269738199,20.301,3543.6,3543.5,3.7483]
[1754269739402,0.56435,3543.5,3543.4,3.2078]
[1754269739607,2.06675,3543.5,3543.4,4.7377]
[1754269740011,2.06675,3543.5,3543.4,6.9561]
[1754269740210,0.56435,3543.5,3543.4,6.9561]
[1754269741013,3.04655,3543.5,3543.4,6.9561]
[1754269741210,3.95525,3543.5,3543.4,3.2078]
[1754269741611,3.95525,3543.5,3543.4,4.15]
[1754269741813,2.06675,3543.5,3543.4,6.9561]
[1754269742114,3.04655,3543.5,3543.4,6.9561]
[1754269743611,0.56435,3543.5,3543.4,6.9561]
[1754269743817,24.25125,3543.5,3543.4,3.2078]
[1754269744325,24.25125,3543.5,3543.4,8.2078]
[1754269744525,24.25125,3543.5,3543.4,9.15]
[1754269745524,23.34255,3543.5,3543.4,10.4262]
[1754269745724,23.34255,3543.5,3543.4,11.9561]
[1754269746527,24.25125,3543.5,3543.4,10.4262]
[1754269747220,24.25125,3543.5,3543.4,9.15]
[1754269747426,24.25125,3543.5,3543.4,5.9422]
[1754269747624,24.25125,3543.5,3543.4,5.0]
[1754269747928,24.25125,3543.5,3543.4,7.2184]
[1754269748631,23.34255,3543.5,3543.4,8.7483]
[1754269748829,25.80875,3543.5,3543.4,10.2518]
[1754269749029,26.71745,3543.5,3543.4,8.7219]
[1754269750532,26.71745,3543.5,3543.4,5.0]
[1754269750933,26.71745,3543.5,3543.4,8.7219]
[1754269752831,26.71745,3543.5,3543.4,7.4457]
[1754269753031,26.71745,3543.5,3543.4,5.0]
[1754269753625,26.71745,3543.5,3543.4,7.4457]
[1754269754231,26.71745,3543.5,3543.4,11.3845]
[1754269754734,25.80875,3543.5,3543.4,11.3845]
[1754269755126,25.80875,3543.5,3543.4,11.3069]
[1754269755326,23.96975,3543.5,3543.4,11.3069]
[1754269755633,21.8192,3544.0,3543.8,2.4578]
[1754269755838,2.2455,3543.8,3543.7,4.1104]
[1754269756031,25.9026,3543.8,3543.7,4.1104]
[1754269756331,25.9026,3543.8,3543.7,4.9902]
[1754269756332,4.655,3543.8,3543.7,4.9902]
[1754269756532,20.28,3543.8,3543.7,2.5324]
[1754269757033,20.28,3543.8,3543.7,4.9902]
[1754269757232,20.28,3543.8,3543.7,6.3069]
[1754269759132,0.56429,3543.9,3543.7,6.3069]
[1754269759333,20.276,3543.8,3543.7,2.5324]
[1754269759633,21.3511,3543.8,3543.7,2.5324]
[1754269759839,24.462,3543.8,3543.7,6.3069]
[1754269760532,25.3343,3543.8,3543.7,6.3069]
[1754269760733,26.2945,3543.8,3543.7,6.3069]
[1754269761229,26.2945,3543.8,3543.7,4.7289]
[1754269761435,26.2945,3543.8,3543.7,2.3338]
[1754269761740,26.2945,3543.8,3543.7,0.8554]
[1754269761936,0.56428,3544.0,3543.9,2.4578]
[1754269762144,20.98718319,3544.0,3543.9,6.3069]
[1754269762842,4.0907,3543.9,3543.8,2.7707]
[1754269763035,6.17140319,3543.9,3543.8,2.7707]
[1754269763435,5.21120319,3543.9,3543.8,6.3069]
[1754269763641,5.0583,3543.9,3543.8,6.3069]
[1754269764642,4.65505,3543.5,3543.4,10.7402]
[1754269764841,20.82935,3543.5,3543.4,8.2078]
[1754269765039,26.84785,3543.5,3543.4,9.6618]
[1754269765245,25.88765,3543.5,3543.4,14.5147]
[1754269765444,25.88765,3543.5,3543.4,11.3069]
[1754269767240,21.90445,3543.5,3543.4,14.5147]
[1754269767545,20.82935,3543.5,3543.4,11.3069]
[1754269769444,22.51055,3543.5,3543.4,8.6505]
[1754269769645,25.88765,3543.5,3543.4,10.2285]
[1754269769851,25.88765,3543.5,3543.4,11.3069]
[1754269771047,31.9587171,3543.5,3543.4,3.96869]
[1754269771252,2.24569,3542.6,3542.5,6.3069]
[1754269771452,25.87779,3542.6,3542.5,6.3069]
[1754269771653,26.83799,3542.6,3542.5,2.3338]
[1754269772953,3.11804,3542.3,3542.2,6.3069]
[1754269773150,5.62284,3542.3,3542.2,6.3069]
[1754269773356,3.78298,3542.1,3542.0,4.9902]
[1754269773549,3.78298,3542.1,3542.0,6.3069]
[1754269773949,3.5211,3542.0,3541.9,3.2078]
[1754269774258,2.6123,3541.7,3541.6,6.3069]
[1754269775056,3.17693,3541.7,3541.6,6.3069]
[1754269775257,0.56463,3541.7,3541.6,6.3069]
[1754269776247,5.62293,3541.7,3541.6,6.3069]
[1754269776454,6.58313,3541.7,3541.6,4.7289]
[1754269777857,6.58313,3541.7,3541.6,6.3069]
[1754269778254,5.62293,3541.7,3541.6,6.3069]
[1754269778450,3.11813,3541.7,3541.6,2.5324]
[1754269778650,3.11813,3541.7,3541.6,6.3069]
[1754269778954,3.7724,3541.9,3541.8,6.3069]
[1754269779253,24.0224,3541.9,3541.8,6.3069]
[1754269779650,3.2078,3541.9,3541.8,6.3069]
[1754269779845,3.2078,3541.9,3541.6,0.56464]
[1754269779846,26.3190671,3541.9,3541.3,0.8798]
[1754269780051,26.3190671,3541.9,3541.7,2.3338]
[1754269780052,5.61552,3541.8,3541.7,2.3338]
[1754269780251,5.61552,3541.8,3541.4,6.3069]
[1754269780252,5.62296,3541.5,3541.4,6.3069]
[1754269780452,26.83116,3541.5,3541.4,4.7289]
[1754269780759,26.83116,3541.5,3541.4,6.3069]
[1754269781659,3.11821,3541.2,3541.1,3.8491]
[1754269781955,6.58321,3541.2,3541.1,2.3338]
[1754269782154,0.56474,3541.0,3540.9,2.33337632]
[1754269782458,6.58324,3541.0,3540.9,1.01667632]
[1754269783254,1.5372,3540.1,3539.4,0.8798]
[1754269783455,2.10212,3539.9,3539.2,5.1779905]
[1754269783658,2.10212,3539.9,3539.3,1.9701905]
[1754269783659,20.80894,3539.8,3539.3,1.9701905]
[1754269783859,20.244,3539.8,3539.3,0.56501]
[1754269784157,1.5372,3539.9,3539.2,3.2078]
[1754269784158,20.244,3539.9,3539.2,3.2078]
[1754269784349,5.26057,3540.2,3538.8,1.4127]
[1754269784350,20.243,3540.0,3539.7,3.2078]
[1754269784547,20.243,3540.1,3539.7,3.2078]
[1754269784755,20.243,3540.3,3539.7,3.2078]
[1754269784957,20.243,3540.3,3538.1,42.85072203]
[1754269784958,0.56488,3540.2,3539.0,0.56506]
[1754269785254,0.56501,3539.4,3538.9,3.2078]
[1754269785463,0.56501,3539.4,3539.1,3.8317]
[1754269785757,0.56501,3539.4,3538.9,3.2078]
[1754269785758,2.05287,3539.6,3539.0,0.56506]
[1754269785954,2.05287,3539.6,3539.5,3.8317]
[1754269786154,3.34767,3539.6,3539.5,0.9036]
[1754269786355,4.31027,3539.6,3539.5,0.9036]
[1754269786556,0.56503,3539.2,3539.0,2.4492]
[1754269786859,1.4879,3539.3,3539.1,1.5456]
[1754269787056,0.565,3539.4,3539.2,3.8317]
[1754269787251,0.565,3539.4,3539.3,3.8317]
[1754269787451,0.56499,3539.5,3538.9,3.77287]
[1754269787648,0.56499,3539.5,3539.4,3.8317]
[1754269787848,20.244,3540.0,3539.3,3.2078]
[1754269788155,0.56495,3539.7,3539.6,3.8317]
[1754269788760,2.05285,3539.7,3539.6,3.8317]
[1754269788957,3.01545,3539.7,3539.6,0.9036]
[1754269789259,4.31029,3539.4,3539.3,3.2078]
[1754269789459,0.56506,3539.0,3538.9,2.4492]
[1754269789658,3.34776,3539.0,3538.9,3.8317]
[1754269789860,3.34776,3539.0,3538.9,0.9036]
[1754269789861,4.31036,3539.0,3538.9,0.9036]
[1754269790356,3.34778,3538.9,3538.8,0.9036]
[1754269790659,3.34778,3538.9,3538.8,3.8317]
[1754269791157,20.80804,3539.2,3538.8,2.9281]
[1754269791354,0.56504,3539.1,3539.0,2.9281]
[1754269791554,0.56504,3539.1,3539.0,3.8317]
[1754269791761,20.80803,3539.2,3539.0,3.8317]
[1754269792058,20.243,3539.2,3539.1,3.8317]
[1754269794160,2.05285,3539.7,3539.2,3.8317]
[1754269794349,1.2948,3539.6,3539.4,0.9036]
[1754269794549,1.4879,3539.5,3539.4,3.8317]
[1754269794754,1.4879,3539.7,3539.2,0.56502]
[1754269794952,3.34766,3539.7,3539.5,2.9281]
[1754269795250,20.243,3539.8,3539.7,3.8317]
[1754269795251,20.241,3539.8,3539.7,3.8317]
[1754269796054,23.4478,3540.0,3539.8,0.56493]
[1754269796261,3.2078,3540.0,3539.9,3.8317]
[1754269796559,5.9905,3540.0,3539.9,4.39662]
[1754269796759,5.9905,3540.0,3539.9,3.8317]
[1754269797059,0.56479,3540.7,3540.1,3.8317]
[1754269797253,1.2948,3540.8,3539.8,3.2078]
[1754269797254,0.56484,3540.4,3540.3,2.9281]
[1754269797556,2.7827,3540.4,3540.3,1.3825]
[1754269797754,3.7453,3540.3,3539.8,3.2078]
[1754269797960,3.7453,3540.2,3539.9,0.9036]
[1754269798153,2.7827,3540.0,3539.9,0.9036]
[1754269798358,2.7827,3540.0,3539.9,2.2861]
[1754269798761,2.7827,3540.3,3540.1,3.8317]
[1754269798957,1.4879,3540.2,3540.0,0.5649]
[1754269799156,1.4879,3540.2,3540.1,1.5456]
[1754269799356,2.7827,3540.2,3539.8,3.2078]
[1754269799562,3.7453,3540.2,3540.0,0.9036]
[1754269799765,2.7827,3540.1,3540.0,2.9281]
[1754269800257,2.7827,3540.1,3540.0,3.8317]
[1754269800475,2.7827,3540.1,3539.8,3.2078]
[1754269800476,23.0197,3540.4,3539.8,3.2078]
[1754269800660,1.4879,3540.3,3540.0,2.4492]
[1754269800855,1.4879,3540.2,3540.1,4.39658]
[1754269801265,0.9849,3540.2,3540.1,6.90418]
[1754269801560,21.7249,3540.4,3539.8,3.2078]
[1754269801561,0.56488,3540.1,3539.9,0.9036]
[1754269801764,6.2747,3540.0,3539.9,0.9036]
[1754269802061,0.56496,3539.6,3539.5,0.9036]
[1754269802265,6.83966,3539.6,3539.5,1.5171]
[1754269802462,2.7827,3539.5,3539.0,3.2078]
[1754269802658,2.4728,3539.1,3539.0,10.11216]
[1754269802854,0.9849,3539.1,3539.0,10.11216]
[1754269803063,5.3121,3539.5,3539.4,6.9043]
[1754269803362,0.9626,3539.4,3539.1,1.5456]
[1754269803559,2.7827,3539.3,3539.2,4.39672]
[1754269803864,1.2948,3539.6,3539.5,0.56498]
[1754269804064,2.7827,3539.6,3539.5,0.9036]
[1754269804454,3.7453,3539.6,3539.5,0.9036]
[1754269804659,3.2078,3540.3,3539.7,2.4492]
[1754269804862,3.2078,3540.3,3540.2,3.01407]
[1754269805061,3.2078,3540.3,3540.2,4.39657]
[1754269806064,2.7827,3540.9,3540.8,2.2861]
[1754269806369,2.7827,3540.9,3540.8,3.8317]
[1754269806962,2.7827,3540.9,3540.8,2.2861]
[1754269807169,2.7827,3540.9,3540.8,3.8317]
[1754269807464,3.2078,3541.6,3540.9,2.9281]
[1754269807768,0.15205729,3541.5,3541.4,3.8317]
[1754269808364,2.7827,3542.1,3541.9,0.56459]
[1754269808559,3.77235,3542.2,3541.9,2.11019]
[1754269808560,0.15206533,3542.0,3541.9,2.11019]
[1754269809163,0.15206533,3542.0,3541.9,4.39629]
[1754269812068,2.93476533,3542.0,3541.9,2.2861]
[1754269812273,1.63996533,3542.0,3541.9,3.8317]
[1754269813375,2.93476533,3542.0,3541.9,3.55638276]
[1754269813672,2.93476533,3542.0,3541.6,6.1359]
[1754269813673,2.4505,3541.7,3541.6,6.1359]
[1754269813868,2.4505,3541.7,3541.6,3.2078]
[1754269813869,3.93356533,3541.7,3541.6,3.2078]
[1754269814070,0.15206533,3541.7,3541.3,0.56469]
[1754269814272,2.8504,3541.4,3541.3,1.80929]
[1754269814567,3.93636533,3541.4,3541.3,1.80929]
[1754269814970,3.93636533,3541.4,3541.3,1.2446]
[1754269815170,3.7843,3541.4,3541.3,2.8014]
[1754269815371,3.7843,3541.4,3541.3,3.36609]
[1754269815571,2.8504,3541.4,3541.3,4.33289]